bitfinex-derivatives/quotes_SOLF0:USTF0_20260311
["timestamp","ask_amount","ask_price","bid_price","bid_amount"]
[1773229789150,10.01492606,84.591,84.55,6.99882317]
[1773229789350,2.95519024,84.59,84.55,6.99882317]
[1773229789553,7.05973582,84.591,84.55,6.99882317]
[1773229789758,7.05973582,84.591,84.54,2.98046647]
[1773229789958,7.05973582,84.591,84.541,11.9]
[1773229790158,7.05973582,84.591,84.542,7.14578176]
[1773229792161,6.64298026,84.605,84.551,7.14578176]
[1773229793362,6.64298026,84.605,84.56,2.98046647]
[1773229793564,6.64298026,84.605,84.551,7.14578176]
[1773229794364,6.64298026,84.603,84.551,7.14578176]
[1773229796168,6.64298026,84.601,84.551,7.14578176]
[1773229797564,6.64298026,84.601,84.56,2.98046647]
[1773229797764,6.89702131,84.599,84.54,2.98046647]
[1773229798068,6.89702131,84.597,84.541,6.75731457]
[1773229798267,6.89702131,84.589,84.529,6.75731457]
[1773229798460,6.89702131,84.579,84.521,6.75731457]
[1773229798665,2.95496274,84.578,84.531,6.75731457]
[1773229798965,6.89702131,84.581,84.531,6.75731457]
[1773229799161,6.89702131,84.581,84.54,2.98046647]
[1773229799360,6.89702131,84.588,84.541,6.75731457]
[1773229799571,6.89702131,84.586,84.53,9.73778104]
[1773229799766,6.89702131,84.584,84.53,9.73778104]
[1773229799962,6.89702131,84.569,84.517,6.75731457]
[1773229800158,6.89702131,84.567,84.517,6.75731457]
[1773229800360,6.89702131,84.565,84.521,6.75731457]
[1773229800669,2.95527655,84.566,84.52,2.98046647]
[1773229800670,6.89702131,84.578,84.531,6.75731457]
[1773229800866,6.89702131,84.576,84.52,2.98046647]
[1773229801069,6.89702131,84.574,84.521,6.75731457]
[1773229801268,6.89702131,84.572,84.521,6.75731457]
[1773229801466,6.89702131,84.57,84.53,2.98046647]
[1773229801770,6.89702131,84.57,84.521,6.75731457]
[1773229801967,6.89702131,84.568,84.521,6.75731457]
[1773229802471,6.89702131,84.589,84.531,6.75731457]
[1773229802668,6.89702131,84.587,84.541,6.75731457]
[1773229802869,6.89702131,84.579,84.528,6.75731457]
[1773229803064,6.89702131,84.577,84.52,2.98046647]
[1773229803267,6.89702131,84.575,84.52,9.73778104]
[1773229803472,6.89702131,84.569,84.52,6.75731457]
[1773229803662,6.89702131,84.567,84.52,6.75731457]
[1773229804572,6.89702131,84.565,84.51,9.73778104]
[1773229806169,6.89702131,84.549,84.498,6.75731457]
[1773229806369,2.98046647,84.54,84.49,2.98046647]
[1773229806669,6.89702131,84.539,84.49,2.98046647]
[1773229806869,6.89702131,84.539,84.485,6.75731457]
[1773229807169,2.95702493,84.577,84.531,6.75731457]
[1773229807369,6.89702131,84.589,84.55,2.98046647]
[1773229807870,6.89702131,84.589,84.531,6.75731457]
[1773229807871,6.89702131,84.589,84.54,2.98046647]
[1773229808067,6.89702131,84.569,84.51,2.98046647]
[1773229808272,6.89702131,84.559,84.509,6.75731457]
[1773229808468,35.52,84.62,84.541,6.75731457]
[1773229808672,11.83,84.685,84.61,2.98046647]
[1773229808871,27.20955583,84.721,84.55,29.33665056]
[1773229809070,26.49810254,84.709,84.64,2.98046647]
[1773229809272,26.49810254,84.699,84.592,35.52]
[1773229809477,25.0078693,84.689,84.64,2.98046647]
[1773229809773,25.0078693,84.689,84.598,11.9]
[1773229809972,25.0078693,84.689,84.6,7.43281322]
[1773229810475,25.0078693,84.689,84.62,7.43281322]
[1773229810866,25.0078693,84.689,84.584,11.9]
[1773229810867,25.0078693,84.689,84.6,7.43281322]
[1773229811472,25.0078693,84.689,84.62,7.43281322]
[1773229811672,7.43281322,84.76,84.65,7.43281322]
[1773229811874,24.74694201,84.719,84.56,7.43281322]
[1773229812078,7.43281322,84.7,84.61,7.43281322]
[1773229812273,24.74325695,84.679,84.57,7.43281322]
[1773229812680,24.74325695,84.679,84.61,7.43281322]
[1773229813974,24.74325695,84.679,84.59,7.43281322]
[1773229814879,24.89954632,84.669,84.57,7.43281322]
[1773229815479,24.89954632,84.669,84.55,7.43281322]
[1773229818889,26.02126942,84.649,84.55,7.43281322]
[1773229822181,11.9,84.688,84.521,21.93485265]
[1773229822182,26.09333909,84.629,84.521,21.93485265]
[1773229822386,26.09333909,84.629,84.427,72.92729731]
[1773229822387,26.09333909,84.629,84.52,7.43281322]
[1773229827097,26.16859454,84.609,84.5,7.43281322]
[1773229828586,7.43281322,84.59,84.48,7.43281322]
[1773229828789,26.1695086,84.569,84.48,7.43281322]
[1773229830194,26.1695086,84.569,84.45,7.43281322]
[1773229831197,26.1695086,84.569,84.47,7.43281322]
[1773229831696,26.1695086,84.569,84.49,7.43281322]
[1773229832299,26.1695086,84.569,84.48,7.43281322]
[1773229832498,26.1695086,84.569,84.5,7.43281322]
[1773229835099,26.1695086,84.569,84.48,7.43281322]
[1773229841610,26.1695086,84.569,84.48,7.46055185]
[1773229845907,26.1695086,84.569,84.458,11.9]
[1773229845908,26.1695086,84.569,84.5,7.46055185]
[1773229846810,26.16893669,84.584,84.52,7.46055185]
[1773229847405,26.16893669,84.584,84.495,35.52]
[1773229847611,26.16893669,84.584,84.51,7.46055185]
[1773229851117,26.16893669,84.584,84.49,7.46055185]
[1773229853112,26.16893669,84.584,84.491,35.52]
[1773229853312,26.16893669,84.584,84.51,7.46055185]
[1773229855411,26.16893669,84.584,84.5,7.46055185]
[1773229856913,26.16893669,84.584,84.438,29.29510721]
[1773229856914,25.99056014,84.579,84.48,7.46055185]
[1773229862131,25.99056014,84.579,84.5,7.46055185]
[1773229863031,25.99056014,84.579,84.482,11.9]
[1773229863232,25.99056014,84.579,84.46,7.46055185]
[1773229863432,26.01676458,84.578,84.46,7.46055185]
[1773229864135,26.01706734,84.559,84.46,7.46055185]
[1773229866127,26.01706734,84.559,84.456,21.93485265]
[1773229866334,26.02220841,84.539,84.438,21.93485265]
[1773229866533,26.02220841,84.538,84.432,21.93485265]
[1773229866735,26.02220841,84.538,84.45,7.46055185]
[1773229868434,26.02220841,84.538,84.43,7.46055185]
[1773229868631,25.98090983,84.509,84.416,21.93485265]
[1773229868831,25.98090983,84.508,84.42,7.46055185]
[1773229869036,26.05297412,84.507,84.42,7.46055185]
[1773229870737,26.05297412,84.507,84.41,7.46055185]
[1773229871633,26.05297412,84.507,84.4,11.9]
[1773229871634,26.05297412,84.507,84.43,7.46055185]
[1773229871835,26.46484289,84.549,84.418,33.83485265]
[1773229872034,26.46484289,84.549,84.45,7.46055185]
[1773229872235,26.46484289,84.549,84.47,7.46055185]
[1773229875931,26.46484289,84.549,84.45,7.46055185]
[1773229878043,26.618249,84.548,84.45,7.46055185]
[1773229878244,26.618249,84.547,84.45,7.46055185]
[1773229880943,26.62050207,84.546,84.408,35.52]
[1773229881141,26.62050207,84.546,84.43,7.46055185]
[1773229881348,26.62050207,84.546,84.45,7.46055185]
[1773229882245,26.62050207,84.546,84.435,11.9]
[1773229882438,26.62050207,84.546,84.45,7.46055185]
[1773229886045,26.62050207,84.546,84.44,11.9]
[1773229886245,26.47601231,84.539,84.43,7.46055185]
[1773229886445,26.47601231,84.538,84.43,7.46055185]
[1773229886948,26.47601231,84.519,84.43,7.46055185]
[1773229887347,26.47601231,84.519,84.41,7.46055185]
[1773229889750,26.47601231,84.519,84.375,151.38]
[1773229889751,26.47601231,84.519,84.406,35.52]
[1773229890054,26.47601231,84.519,84.42,7.46055185]
[1773229891144,26.47601231,84.519,84.44,7.46055185]
[1773229891849,26.49102067,84.556,84.46,7.46055185]
[1773229893259,26.49102067,84.556,84.42,7.46055185]
[1773229893260,26.49102067,84.556,84.48,7.46055185]
[1773229897759,26.43584608,84.588,84.5,7.46055185]
[1773229898263,26.43584608,84.588,84.501,11.9]
[1773229898463,26.43584608,84.588,84.52,7.46055185]
[1773229898758,26.43645814,84.629,84.502,35.52]
[1773229898962,26.43645814,84.629,84.49,7.46055185]
[1773229898963,26.43645814,84.629,84.54,7.46055185]
[1773229900054,26.43645814,84.629,84.56,7.46055185]
[1773229900760,26.43645814,84.629,84.53,7.46055185]
[1773229901358,35.45160844,84.629,84.53,7.46055185]
[1773229901555,26.55514579,84.609,84.51,7.46055185]
[1773229902659,26.55514579,84.609,84.5,7.46055185]
[1773229903670,26.55514579,84.609,84.5,7.45616581]
[1773229908071,26.47378678,84.589,84.5,7.45616581]
[1773229910572,26.47378678,84.589,84.48,7.45616581]
[1773229911175,26.46051844,84.569,84.46,7.45616581]
[1773229913480,26.45259444,84.549,84.446,11.9]
[1773229914876,26.45259444,84.549,84.445,11.9]
[1773229915087,26.3183472,84.529,84.44,7.45616581]
[1773229919293,26.3183472,84.529,84.441,11.92]
[1773229920184,26.3183472,84.529,84.46,7.45616581]
[1773229921392,26.20804662,84.569,84.48,7.45616581]
[1773229921589,26.20804662,84.569,84.5,7.45616581]
[1773229925194,26.20804662,84.569,84.48,7.45616581]
[1773229925596,26.20804662,84.569,84.5,7.45616581]
[1773229928295,26.20804662,84.569,84.48,7.45616581]
[1773229931301,26.20804662,84.569,84.46,7.45616581]
[1773229932105,35.15824145,84.569,84.46,7.45616581]
[1773229932306,26.09409921,84.549,84.44,7.45616581]
[1773229937309,26.09409921,84.549,84.46,7.45616581]
[1773229937700,26.09409921,84.549,84.48,7.45616581]
[1773229941704,26.09409921,84.549,84.46,7.45616581]
[1773229945914,26.09409921,84.549,84.48,7.45616581]
[1773229949813,26.09409921,84.549,84.46,7.45616581]
[1773229952423,26.09409921,84.549,84.46,7.45616581]
[1773229953022,26.09409921,84.549,84.42,7.45616581]
[1773229953023,26.09409921,84.549,84.44,7.45616581]
[1773229953222,26.12998121,84.548,84.44,7.45616581]
[1773229955120,26.12998121,84.548,84.441,11.92]
[1773229958330,26.12998121,84.548,84.44,7.45616581]
[1773229958717,26.12998121,84.548,84.439,11.92]
[1773229958718,26.12998121,84.548,84.46,7.45616581]
[1773229963534,26.12998121,84.548,84.45,7.46446144]
[1773229964631,7.46446144,84.56,84.421,35.51]
[1773229964632,25.9614921,84.539,84.44,11.92]
[1773229964834,25.9614921,84.538,84.44,11.92]
[1773229965532,25.9614921,84.538,84.43,7.46446144]
[1773229965736,25.9614921,84.538,84.431,11.92]
[1773229967032,25.9614921,84.538,84.43,7.46446144]
[1773229967033,25.91938231,84.536,84.43,7.46446144]
[1773229967339,25.91938231,84.534,84.43,7.46446144]
[1773229968542,25.91942087,84.533,84.43,7.46446144]
[1773229969143,25.92546585,84.531,84.43,7.46446144]
[1773229969336,11.92,84.532,84.43,7.46446144]
[1773229969337,25.92546585,84.53,84.43,7.46446144]
[1773229974339,25.99621383,84.519,84.41,7.46446144]
[1773229974547,25.99621383,84.515,84.41,7.46446144]
[1773229974849,25.99621383,84.499,84.39,7.46446144]
[1773229975050,25.99621383,84.498,84.39,7.46446144]
[1773229975845,25.99621383,84.498,84.41,7.46446144]
[1773229976843,25.99621383,84.498,84.39,7.46446144]
[1773229977140,25.99621383,84.498,84.39,19.38446144]
[1773229980945,25.99621383,84.498,84.41,7.46446144]
[1773229983053,25.99621383,84.498,84.4,7.46446144]
[1773229987657,25.69367719,84.479,84.42,2.98979542]
[1773229988660,25.69367719,84.479,84.43,2.98979542]
[1773229989760,25.69367719,84.479,84.35,35.51]
[1773229990062,25.69367719,84.479,84.43,2.98979542]
[1773229990959,25.69367719,84.479,84.42,2.98979542]
[1773229991556,25.69367719,84.479,84.43,2.98979542]
[1773229991860,25.69367719,84.479,84.44,2.98979542]
[1773229992054,25.69367719,84.479,84.45,2.98979542]
[1773229993359,25.79894012,84.509,84.45,2.98979542]
[1773229994155,25.79894012,84.509,84.46,2.98979542]
[1773229994555,25.79894012,84.509,84.45,2.98979542]
[1773229995759,11.92,84.529,84.44,2.98979542]
[1773229995760,25.64611991,84.499,84.44,2.98979542]
[1773229996662,2.98979542,84.5,84.44,2.98979542]
[1773229996663,25.64606995,84.489,84.44,2.98979542]
[1773229997955,25.64606995,84.489,84.41,11.92]
[1773229997956,25.64606995,84.489,84.43,2.98979542]
[1773229999264,25.71131157,84.479,84.41,11.92]
[1773229999457,25.71131157,84.479,84.42,2.98979542]
[1773229999760,25.71131157,84.479,84.43,2.98979542]
[1773230001362,25.71131157,84.479,84.4,11.92]
[1773230001559,25.71131157,84.479,84.43,2.98979542]
[1773230004060,25.71131157,84.479,84.42,2.98979542]
[1773230006071,25.71131157,84.479,84.43,2.98979542]
[1773230007366,25.75147754,84.469,84.41,2.98979542]
[1773230008167,25.75147754,84.469,84.42,2.98979542]
[1773230008767,25.75147754,84.469,84.41,2.98979542]
[1773230009868,25.75352879,84.459,84.364,29.22171546]
[1773230010064,25.75352879,84.459,84.4,2.98979542]
[1773230010770,25.75352879,84.459,84.352,35.51]
[1773230010771,25.75352879,84.459,84.41,2.98979542]
[1773230011972,25.75352879,84.459,84.42,2.98979542]
[1773230013574,25.75352879,84.459,84.41,2.98979542]
[1773230015579,25.75352879,84.459,84.42,2.98979542]
[1773230017472,25.75352879,84.459,84.41,2.98979542]
[1773230018279,25.75352879,84.459,84.384,2.06080561]
[1773230018479,25.76988849,84.449,84.39,2.98979542]
[1773230018679,25.76988849,84.449,84.4,2.98979542]
[1773230020174,25.76988849,84.449,84.41,2.98979542]
[1773230022283,25.77099831,84.479,84.42,2.98979542]
[1773230022881,25.77099831,84.479,84.41,2.98979542]
[1773230023082,25.76460168,84.469,84.399,11.92]
[1773230023283,25.76460168,84.469,84.41,2.98979542]
[1773230023584,25.76460168,84.469,84.41,2.99067477]
[1773230028188,25.76460168,84.469,84.42,2.99067477]
[1773230029881,25.76460168,84.469,84.41,2.99067477]
[1773230030486,25.76460168,84.469,84.402,11.92]
[1773230030886,25.76460168,84.469,84.41,2.99067477]
[1773230031086,25.74027565,84.459,84.4,2.99067477]
[1773230037590,25.74027565,84.459,84.41,2.99067477]
[1773230038394,25.74027565,84.459,84.42,2.99067477]
[1773230038902,25.71448334,84.489,84.44,2.99067477]
[1773230039108,25.71448334,84.489,84.43,2.99067477]
[1773230040099,25.71448334,84.489,84.44,2.99067477]
[1773230040305,25.71448334,84.489,84.45,2.99067477]
[1773230043908,25.71448334,84.489,84.44,2.99067477]
[1773230045309,25.71448334,84.489,84.392,35.51]
[1773230045310,25.71448334,84.489,84.43,2.99067477]
[1773230046012,25.71448334,84.489,84.44,2.99067477]
[1773230048708,2.99067477,84.48,84.386,29.22171546]
[1773230048904,25.56203643,84.469,84.42,2.99067477]
[1773230049611,25.56203643,84.469,84.43,2.99067477]
[1773230050112,25.56203643,84.469,84.42,2.99067477]
[1773230051512,25.56203643,84.469,84.43,2.99067477]
[1773230056310,25.56203643,84.469,84.399,11.92]
[1773230056311,25.56203643,84.469,84.42,2.99067477]
[1773230059612,25.56203643,84.469,84.399,11.92]
[1773230059811,25.51816145,84.482,84.44,2.99067477]
[1773230060119,25.51816145,84.482,84.45,2.99067477]
[1773230060320,25.51816145,84.482,84.403,29.22171546]
[1773230060321,25.51816145,84.482,84.419,11.92]
[1773230060620,25.51816145,84.482,84.45,2.99067477]
[1773230062323,25.51816145,84.482,84.44,2.99067477]
[1773230063018,25.51816145,84.482,84.43,2.99067477]
[1773230063817,25.51816145,84.482,84.44,2.99067477]
[1773230065818,25.51816145,84.482,84.45,2.99067477]
[1773230066921,25.44239407,84.509,84.46,2.99067477]
[1773230067722,25.44239407,84.509,84.47,2.99067477]
[1773230070825,25.44239407,84.509,84.46,2.99067477]
[1773230077825,49.99343678,84.569,84.387,36.67357556]
[1773230077826,25.51795177,84.499,84.44,2.99067477]
[1773230078231,25.51795177,84.499,84.45,2.99067477]
[1773230079634,25.51795177,84.499,84.44,2.99067477]
[1773230083629,25.51795177,84.499,84.45,2.98760736]
[1773230083836,25.51795177,84.499,84.44,2.98760736]
[1773230093538,25.50399089,84.469,84.42,2.98760736]
[1773230094244,25.50399089,84.469,84.43,2.98760736]
[1773230094842,25.50396405,84.489,84.43,2.98760736]
[1773230099758,25.61110531,84.479,84.43,2.98760736]
[1773230100957,25.61108755,84.469,84.41,2.98760736]
[1773230102358,25.61108755,84.469,84.42,2.98760736]
[1773230102560,25.61619528,84.489,84.44,2.98760736]
[1773230102755,25.61619528,84.489,84.45,2.98760736]
[1773230103561,25.61619528,84.489,84.426,11.92]
[1773230103756,25.61619528,84.489,84.44,2.98760736]
[1773230103958,25.61619528,84.489,84.45,2.98760736]
[1773230104560,25.61619528,84.489,84.44,2.98760736]
[1773230104757,25.40330803,84.502,84.46,2.98760736]
[1773230105266,25.40330803,84.502,84.47,2.98760736]
[1773230105461,25.3980438,84.529,84.47,2.98760736]
[1773230105666,25.3980438,84.527,84.47,2.98760736]
[1773230105862,25.3980438,84.519,84.46,2.98760736]
[1773230106063,25.3980438,84.517,84.46,2.98760736]
[1773230107267,25.39441632,84.509,84.45,2.98760736]
[1773230107464,25.39441632,84.509,84.412,29.22171546]
[1773230107465,25.39441632,84.509,84.44,2.98760736]
[1773230107664,25.39441632,84.479,84.395,29.22171546]
[1773230107867,25.39441632,84.479,84.42,2.98760736]
[1773230108264,25.39441632,84.479,84.43,2.98760736]
[1773230108565,25.39438074,84.494,84.45,2.98760736]
[1773230108968,25.39438074,84.494,84.44,2.98760736]
[1773230112467,25.39438074,84.494,84.45,2.98760736]
[1773230112869,25.39438074,84.494,84.44,2.98760736]
[1773230115373,25.44020175,84.479,84.42,2.98760736]
[1773230115872,25.44020175,84.479,84.44,2.98760736]
[1773230117671,2.98760736,84.51,84.45,2.98760736]
[1773230117877,25.47077814,84.508,84.45,2.98760736]
[1773230118072,25.47077814,84.506,84.46,2.98760736]
[1773230118276,25.47074978,84.52,84.47,2.98760736]
[1773230118678,25.47074978,84.52,84.418,41.14171546]
[1773230118878,25.47074978,84.518,84.46,2.98760736]
[1773230119678,2.9578733,84.517,84.46,2.98760736]
[1773230119880,25.44137171,84.509,84.46,2.98760736]
[1773230120582,25.44137171,84.509,84.45,2.98760736]
[1773230122180,25.48906896,84.507,84.45,2.98760736]
[1773230122381,25.48906896,84.499,84.44,2.98760736]
[1773230123879,2.98760736,84.49,84.43,2.98760736]
[1773230124084,28.4378269,84.489,84.43,2.98760736]
[1773230124280,25.479182,84.487,84.43,2.98760736]
[1773230124484,25.479182,84.487,84.44,2.98760736]
[1773230128688,25.26264659,84.485,84.43,2.98760736]
[1773230128887,25.26264659,84.483,84.43,2.98760736]
[1773230129785,25.26264659,84.483,84.44,2.98760736]
[1773230130087,25.32512653,84.497,84.45,2.98760736]
[1773230130687,25.32510101,84.495,84.44,2.98760736]
[1773230131384,25.32510101,84.495,84.45,2.98760736]
[1773230131583,25.32510101,84.495,84.46,2.98760736]
[1773230132384,25.14644945,84.516,84.46,2.98760736]
[1773230132585,25.14644945,84.514,84.46,2.98760736]
[1773230132986,25.14644945,84.514,84.47,2.98760736]
[1773230134593,2.98760736,84.52,84.47,2.98760736]
[1773230134594,25.35650325,84.512,84.47,2.98760736]
[1773230136095,25.35650325,84.512,84.48,2.98760736]
[1773230136590,25.35650325,84.512,84.47,2.98760736]
[1773230137190,25.35650325,84.512,84.426,35.51]
[1773230137191,25.35650325,84.512,84.48,2.98760736]
[1773230137397,25.35650325,84.512,84.47,2.98760736]
[1773230137595,25.35650325,84.512,84.48,2.98760736]
[1773230138090,25.35650325,84.512,84.46,2.98760736]
[1773230138692,25.37134997,84.509,84.45,2.98760736]
[1773230138888,2.98760736,84.51,84.45,2.98760736]
[1773230138889,25.37134997,84.507,84.45,2.98760736]
[1773230140591,25.34199093,84.499,84.44,2.98760736]
[1773230141296,25.34199093,84.499,84.46,2.98760736]
[1773230141896,25.33967063,84.516,84.47,2.98760736]
[1773230142893,25.33965108,84.514,84.47,2.98760736]
[1773230143094,25.27619443,84.509,84.45,2.98760736]
[1773230143693,25.27619443,84.509,84.45,2.98755877]
[1773230144094,25.27619443,84.509,84.46,2.98755877]
[1773230144595,25.27619443,84.509,84.47,2.98755877]
[1773230147095,25.27619443,84.509,84.44,11.92]
[1773230147404,25.27619443,84.509,84.47,2.98755877]
[1773230148299,25.27619443,84.509,84.453,11.92]
[1773230148501,25.27619443,84.509,84.47,2.98755877]
[1773230151403,25.27619443,84.509,84.46,2.98755877]
[1773230152207,25.27619443,84.509,84.48,2.98755877]
[1773230152410,25.27619443,84.509,84.47,2.98755877]
[1773230154111,25.27619443,84.509,84.46,2.98755877]
[1773230155605,25.27619443,84.509,84.45,2.98755877]
[1773230155812,25.33305201,84.507,84.45,2.98755877]
[1773230157603,25.33305201,84.507,84.46,2.98755877]
[1773230161214,25.33305201,84.507,84.47,2.98755877]
[1773230163118,25.33305201,84.507,84.46,2.98755877]
[1773230163314,25.33305201,84.507,84.454,11.92]
[1773230163519,25.33305201,84.507,84.46,2.98755877]
[1773230164616,25.33305201,84.507,84.45,2.98755877]
[1773230166118,25.33305201,84.507,84.46,2.98755877]
[1773230168416,25.33305201,84.507,84.45,2.98755877]
[1773230168615,25.33305201,84.507,84.46,2.98755877]
[1773230173932,25.33305201,84.507,84.45,2.98755877]
[1773230174234,25.33305201,84.507,84.46,2.98755877]
[1773230176737,25.33305201,84.507,84.48,2.98755877]
[1773230177136,25.33305201,84.507,84.47,2.98755877]
[1773230177333,25.33305201,84.507,84.48,2.98755877]
[1773230179237,25.33305201,84.507,84.47,2.98755877]
[1773230181939,25.33305201,84.507,84.432,29.22171546]
[1773230182140,25.33305201,84.507,84.46,2.98755877]
[1773230183340,25.33305201,84.507,84.47,2.98755877]
[1773230184642,25.33305201,84.507,84.46,2.98755877]
[1773230185737,25.33305201,84.507,84.45,2.98755877]
[1773230186037,25.33305201,84.507,84.46,2.98755877]
[1773230189842,25.43152503,84.499,84.45,2.98755877]
[1773230190849,25.43152503,84.499,84.47,2.98755877]
[1773230196539,25.43152503,84.499,84.437,11.92]
[1773230196743,25.43152503,84.499,84.46,2.98755877]
[1773230197150,25.43152503,84.499,84.47,2.98755877]
[1773230204049,25.43152503,84.499,84.437,41.14171546]
[1773230204050,25.43152503,84.499,84.46,2.98755877]
[1773230204252,25.43152503,84.499,84.45,2.98755877]
[1773230205059,25.43152503,84.499,84.46,2.98755877]
[1773230205562,25.43152503,84.499,84.46,2.98722183]
[1773230206458,25.45985339,84.479,84.405,198.30333722]
[1773230206663,9.08232405,84.537,84.357,11.84]
[1773230206664,2.95911151,84.478,84.376,29.22171546]
[1773230206856,10.87813319,84.451,84.33,96.49428532]
[1773230207052,2.98722183,84.38,84.33,96.44058715]
[1773230207256,11.92,84.443,84.33,96.44058715]
[1773230207455,11.92,84.443,84.343,81.97124043]
[1773230207456,2.98722183,84.41,84.343,81.97124043]
[1773230207657,2.98722183,84.43,84.37,2.98722183]
[1773230208061,2.98722183,84.42,84.36,2.98722183]
[1773230208363,2.98722183,84.41,84.359,81.97395449]
[1773230208561,2.98722183,84.43,84.37,2.98722183]
[1773230208768,2.98722183,84.44,84.38,2.98722183]
[1773230209256,2.98722183,84.44,84.38,82.0249386]
[1773230209456,2.98722183,84.44,84.38,85.01216043]
[1773230210066,2.98722183,84.45,84.38,85.01216043]
[1773230210364,2.98722183,84.46,84.41,2.98722183]
[1773230210862,2.98722183,84.47,84.42,2.98722183]
[1773230211054,288.3587158,84.487,84.44,2.98722183]
[1773230211564,288.3587158,84.487,84.43,2.98722183]
[1773230211964,288.3587158,84.487,84.44,2.98722183]
[1773230212162,16.49800739,84.578,84.45,2.98722183]
[1773230212467,16.49800739,84.578,84.443,82.04782993]
[1773230212468,2.98722183,84.5,84.443,82.04782993]
[1773230213060,2.98722183,84.51,84.443,82.04782993]
[1773230213366,2.98722183,84.51,84.45,2.98722183]
[1773230214361,2.98722183,84.49,84.43,2.98722183]
[1773230214762,2.98722183,84.47,84.41,2.98722183]
[1773230215066,2.98722183,84.46,84.4,2.98722183]
[1773230215366,2.98722183,84.47,84.41,2.98722183]
[1773230216761,2.98722183,84.48,84.42,2.98722183]
[1773230217067,2.98722183,84.49,84.43,2.98722183]
[1773230217268,11.92,84.521,84.413,82.01796404]
[1773230217269,2.98722183,84.48,84.42,2.98722183]
[1773230217463,2.98722183,84.49,84.43,2.98722183]
[1773230217666,7.47353106,84.51,84.413,82.01796404]
[1773230220863,7.47353106,84.51,84.415,82.01796404]
[1773230221064,2.95851387,84.509,84.415,82.01796404]
[1773230221369,2.95851387,84.508,84.415,82.01796404]
[1773230221570,2.95851387,84.507,84.415,82.01796404]
[1773230221764,2.95851387,84.506,84.415,82.01796404]
[1773230221959,2.95851387,84.505,84.415,82.01796404]
[1773230222169,2.95851387,84.504,84.415,82.01796404]
[1773230222367,2.95851387,84.509,84.415,82.01796404]
[1773230222567,2.95851387,84.508,84.415,82.01796404]
[1773230222769,2.95851387,84.507,84.415,82.01796404]
[1773230222963,2.95851387,84.506,84.415,82.01796404]
[1773230223163,2.95851387,84.505,84.415,82.01796404]
[1773230223365,2.95851387,84.504,84.415,82.01796404]
[1773230223568,2.95950674,84.509,84.415,82.01796404]
[1773230223769,2.95950674,84.508,84.415,82.01796404]
[1773230223966,2.95950674,84.507,84.415,82.01796404]
[1773230224270,2.95950674,84.506,84.415,82.01796404]
[1773230224466,2.95950674,84.505,84.415,82.01796404]
[1773230224669,2.95950674,84.504,84.415,82.01796404]
[1773230224870,2.95950674,84.503,84.415,82.01796404]
[1773230225169,2.95950674,84.502,84.415,82.01796404]
[1773230225470,2.95950674,84.501,84.415,82.01796404]
[1773230225665,2.95950674,84.5,84.415,82.01796404]
[1773230225872,2.95950674,84.499,84.415,82.01796404]
[1773230226170,2.95950674,84.498,84.415,82.01796404]
[1773230226370,2.95950674,84.497,84.415,82.01796404]
[1773230226563,2.95950674,84.496,84.415,82.01796404]
[1773230226766,2.95950674,84.495,84.415,82.01796404]
[1773230226967,2.95950674,84.494,84.415,82.01796404]
[1773230227167,2.95950674,84.493,84.415,82.01796404]
[1773230227469,7.47353106,84.49,84.415,82.01796404]
[1773230227664,2.95950674,84.489,84.416,93.93796404]
[1773230227865,2.95950674,84.489,84.351,35.51]
[1773230227866,2.95950674,84.488,84.421,82.01796404]
[1773230228062,2.95950674,84.487,84.423,82.01796404]
[1773230228260,2.95950674,84.486,84.423,82.01796404]
[1773230228467,19.39353106,84.53,84.423,82.01796404]
[1773230228670,2.95923599,84.529,84.423,82.01796404]
[1773230228871,2.95923599,84.528,84.423,82.01796404]
[1773230229073,2.95923599,84.527,84.423,82.01796404]
[1773230229270,2.95923599,84.526,84.423,82.01796404]
[1773230229473,2.95923599,84.525,84.423,82.01796404]
[1773230229770,2.95923599,84.524,84.423,82.01796404]
[1773230229969,2.95923599,84.523,84.423,82.01796404]
[1773230230170,2.95923599,84.522,84.423,82.01796404]
[1773230230373,2.95923599,84.521,84.423,82.01796404]
[1773230230564,2.95923599,84.52,84.423,82.01796404]
[1773230230768,2.95923599,84.519,84.423,82.01796404]
[1773230231072,2.95923599,84.518,84.423,82.01796404]
[1773230231268,2.95923599,84.517,84.423,82.01796404]
[1773230231464,2.95923599,84.516,84.423,82.01796404]
[1773230231665,2.95923599,84.515,84.423,82.01796404]
[1773230231864,2.95923599,84.514,84.423,82.01796404]
[1773230232075,2.95923599,84.513,84.423,82.01796404]
[1773230232273,2.95923599,84.512,84.423,82.01796404]
[1773230232478,2.95923599,84.511,84.423,82.01796404]
[1773230232669,2.95923599,84.51,84.423,82.01796404]
[1773230232871,12.00091685,84.509,84.423,82.01796404]
[1773230233075,12.00091685,84.508,84.423,82.01796404]
[1773230233375,12.00091685,84.507,84.423,82.01796404]
[1773230233575,12.00091685,84.506,84.423,82.01796404]
[1773230233874,12.00091685,84.505,84.423,82.01796404]
[1773230234066,12.00091685,84.504,84.423,82.01796404]
[1773230234268,12.00091685,84.503,84.423,82.01796404]